bitfinex/quotes_ETHUSD_20220113
["timestamp","ask_amount","ask_price","bid_price","bid_amount"]
[1642069324311,0.49974973,3379.4,3379.3,2.8116438]
[1642069324710,0.49974973,3379.4,3379.3,3.1116438]
[1642069326009,0.49974973,3379.4,3379.3,1.77984]
[1642069326211,1.61804973,3379.4,3379.1,1.47953]
[1642069326412,0.00352987,3379.3,3379.1,1.47953]
[1642069326611,0.1183,3379.2,3379.1,0.97978027]
[1642069326810,0.1183,3379.3,3379.1,0.97978027]
[1642069327010,0.1183,3379.3,3379.1,0.98091712]
[1642069327212,1.63937499,3379.3,3379.1,0.48119836]
[1642069327761,0.01874244,3379.1,3379.0,3.1117682]
[1642069328360,0.1183,3379.3,3379.0,3.1117682]
[1642069328760,1.52107499,3379.4,3379.0,3.1117682]
[1642069329159,0.00113684,3379.3,3379.0,3.1117682]
[1642069329560,0.49973799,3379.2,3379.0,3.1117682]
[1642069329961,0.49973799,3379.2,3379.0,3.2300682]
[1642069330160,0.00113684,3379.3,3379.0,3.2300682]
[1642069330965,0.00113684,3379.3,3379.0,3.9699882]
[1642069331622,2.52314589,3379.1,3379.0,3.9699882]
[1642069331822,2.52314589,3379.1,3379.0,1.7501182]
[1642069332022,2.52314589,3379.1,3379.0,0.1183]
[1642069332422,0.38143799,3379.0,3378.9,1.03997]
[1642069332624,0.38143799,3379.0,3378.9,1.15827]
[1642069332824,0.38143799,3379.0,3378.9,1.15940685]
[1642069333424,2.52314589,3379.0,3378.9,1.15940685]
[1642069333825,2.52314589,3379.0,3378.9,1.04110685]
[1642069334325,1.50417565,3379.1,3378.9,1.04110685]
[1642069334725,1.50417565,3379.1,3378.9,0.54127137]
[1642069335365,1.50417565,3379.1,3378.9,0.00113685]
[1642069335668,2.52314589,3379.0,3378.9,0.00113685]
[1642069337268,2.52314589,3379.0,3378.9,0.30113685]
[1642069338171,2.52314589,3379.0,3378.9,2.16122571]
[1642069338568,2.52314589,3379.0,3378.9,0.30003685]
[1642069339218,2.52314589,3379.0,3378.9,2.19108753]
[1642069339618,1.4713018,3379.3,3379.0,0.73999]
[1642069339619,2.52314589,3379.2,3379.0,0.73999]
[1642069340515,2.52314589,3379.2,3379.0,1.4059859]
[1642069341717,3.02306035,3379.2,3379.0,1.4059859]
[1642069342319,2.52314589,3379.2,3379.0,1.4059859]
[1642069343367,2.52428273,3379.3,3379.0,1.4059859]
[1642069343964,1.85823849,3379.2,3379.0,1.4059859]
[1642069344265,2.52314589,3379.1,3379.0,1.4059859]
[1642069345667,1.52314589,3379.1,3379.0,1.4059859]
[1642069347621,0.00113684,3379.3,3379.0,1.4059859]
[1642069348824,0.74116684,3379.3,3379.0,1.4059859]
[1642069349225,1.2410813,3379.3,3379.0,1.4059859]
[1642069350368,1.2410813,3379.3,3379.0,0.6659959]
[1642069351072,1.3593813,3379.3,3379.0,0.6659959]
[1642069351771,1.39368933,3379.2,3379.0,0.6659959]
[1642069353072,1.39368933,3379.2,3378.9,0.30003685]
[1642069353371,0.74011,3379.1,3378.9,0.30003685]
[1642069353675,0.19987761,3378.9,3378.8,1.4060496]
[1642069354115,0.85841,3379.1,3378.8,1.4060496]
[1642069355117,0.74011,3379.1,3378.8,1.4060496]
[1642069355417,0.74011,3379.1,3378.9,0.3]
[1642069355418,0.49975032,3379.1,3378.9,0.3]
[1642069356220,0.49975032,3379.1,3378.9,1.03999]
[1642069356518,0.00113684,3379.3,3378.9,1.03999]
[1642069356717,0.50088716,3379.3,3379.0,0.6659752]
[1642069356917,0.00170527,3379.2,3379.0,0.6659752]
[1642069357323,0.00113685,3379.1,3379.0,0.6659752]
[1642069357764,0.00113685,3379.1,3379.0,1.4059552]
[1642069358665,0.00113685,3379.1,3379.0,0.6659752]
[1642069362833,0.11943685,3379.1,3378.9,0.1183]
[1642069363232,6.5183,3379.0,3378.9,0.1183]
[1642069363433,6.5183,3379.0,3378.4,8.38423362]
[1642069363434,1.48034,3378.8,3378.4,4.9495]
[1642069363632,1.53214186,3378.5,3378.4,1.1454]
[1642069363832,0.74018,3378.4,3378.1,11.3393042]
[1642069364036,0.74018,3378.4,3378.1,7.4923042]
[1642069364233,0.74018,3378.4,3378.2,0.00397896]
[1642069364736,1.53214186,3378.5,3378.2,1.78429896]
[1642069365210,2.03202472,3378.5,3378.3,0.66954354]
[1642069365610,0.49988286,3378.5,3378.4,0.00284212]
[1642069366312,0.1183,3378.7,3378.5,1.4062923]
[1642069366509,0.1183,3378.7,3378.6,0.3]
[1642069366713,0.1183,3378.7,3378.6,0.30170527]
[1642069367012,2.69497434,3378.9,3378.6,0.30170527]
[1642069367013,0.49988286,3378.8,3378.6,0.30170527]
[1642069367211,0.49988286,3378.8,3378.6,1.33379557]
[1642069367510,1.16965607,3378.9,3378.7,0.74119685]
[1642069367911,1.16965607,3378.9,3378.7,1.04119685]
[1642069368209,1.16965607,3378.9,3378.7,0.30113685]
[1642069368410,1.90972607,3378.9,3378.7,0.30113685]
[1642069368615,1.90972607,3378.9,3378.7,0.90745449]
[1642069369027,1.90972607,3378.9,3378.7,1.20745449]
[1642069369428,1.90972607,3378.9,3378.7,0.30113685]
[1642069369626,1.90972607,3378.9,3378.7,0.00113685]
[1642069369826,1.90972607,3378.9,3378.7,0.74122685]
[1642069370026,1.90972607,3378.9,3378.7,0.74009]
[1642069370429,1.90972607,3378.9,3378.7,0.44404369]
[1642069370828,1.90972607,3378.9,3378.5,1.48017]
[1642069371027,1.90972607,3378.9,3378.6,1.7062083]
[1642069371228,1.90972607,3378.9,3378.6,0.96780357]
[1642069371430,0.00118411,3378.8,3378.7,0.00113685]
[1642069372031,1.90972607,3378.9,3378.7,0.00113685]
[1642069372528,0.49999259,3378.8,3378.6,0.00170527]
[1642069372766,0.74014,3378.7,3378.6,0.00170527]
[1642069372965,0.74014,3378.7,3378.5,0.6661351]
[1642069373166,0.74014,3378.7,3378.6,0.00170527]
[1642069373766,0.49828732,3378.6,3378.5,1.4062951]
[1642069374372,0.74014,3378.7,3378.5,1.4062951]
[1642069374568,0.85844,3378.7,3378.5,1.4062951]
[1642069376715,0.85844,3378.7,3378.5,0.90652746]
[1642069376917,0.85844,3378.7,3378.5,0.16636746]
[1642069377316,0.33336609,3378.5,3378.3,1.48018]
[1642069377517,0.74019,3378.3,3378.0,10.0]
[1642069378317,0.426,3378.2,3378.0,10.0]
[1642069378517,5.31465454,3378.1,3378.0,10.0]
[1642069378717,5.31465454,3378.1,3378.0,9.99454]
[1642069378919,5.31465454,3378.1,3378.0,9.99795054]
[1642069379118,5.31465454,3378.1,3378.0,10.29795054]
[1642069379521,5.31465454,3378.1,3378.0,9.79816701]
[1642069379719,7.44098974,3378.1,3378.0,9.79816701]
[1642069380165,7.44098974,3378.1,3378.0,9.49816109]
[1642069380866,7.44098974,3378.1,3378.0,9.29824106]
[1642069381267,7.44098974,3378.1,3378.0,9.59824106]
[1642069381470,7.44098974,3378.1,3378.0,9.29821292]
[1642069381865,7.44098974,3378.1,3378.0,9.09829289]
[1642069382068,8.44098974,3378.1,3378.0,9.09829289]
[1642069382468,10.9871615,3378.1,3378.0,8.79826475]
[1642069382968,17.2315615,3378.1,3377.4,6.16]
[1642069383168,0.74056,3377.8,3377.2,0.1184]
[1642069383369,0.29718602,3377.4,3377.2,0.1184]
[1642069383770,6.82587017,3377.3,3377.2,0.1184]
[1642069384030,3.62587017,3377.3,3377.2,0.1184]
[1642069384229,1.54006159,3377.3,3377.2,0.12010527]
[1642069384432,2.28056159,3377.3,3377.2,0.12010527]
[1642069384633,4.82673335,3377.3,3377.2,0.12010527]
[1642069384831,6.79574293,3377.3,3377.2,0.12010527]
[1642069385236,1.34680768,3376.9,3376.6,1.3328167]
[1642069385433,4.71075339,3377.2,3376.6,1.3328167]
[1642069385631,1.86075339,3377.2,3376.7,0.00284211]
[1642069385832,1.48106,3377.2,3376.7,0.00284211]
[1642069386333,1.48106,3377.2,3376.7,0.66928471]
[1642069386532,2.75873014,3377.2,3376.8,0.3]
[1642069386731,0.7405,3377.0,3376.8,0.30227369]
[1642069386933,0.7405,3377.0,3376.9,0.00170527]
[1642069387136,1.7689687,3376.8,3376.6,1.6328167]
[1642069387334,1.7689687,3376.8,3376.7,0.00113684]
[1642069387533,1.27071814,3376.8,3376.7,0.00113684]
[1642069388403,2.01124814,3376.8,3376.7,0.00113684]
[1642069388905,0.49859479,3376.7,3376.6,1.6328167]
[1642069389904,1.27071814,3376.8,3376.6,1.6328167]
[1642069390309,1.27071814,3376.8,3376.6,2.3733067]
[1642069391305,0.49977964,3376.7,3376.6,2.3733067]
[1642069391722,0.49977964,3376.7,3376.6,1.6328167]
[1642069395769,0.49977964,3376.7,3376.6,1.9328167]
[1642069396968,0.49977964,3376.7,3376.6,1.6328167]
[1642069398928,0.49977964,3376.7,3376.6,0.3]
[1642069404170,0.49977964,3376.7,3376.6,1.6329015]
[1642069405472,0.49977964,3376.7,3376.6,0.3]
[1642069405671,1.27071814,3376.8,3376.6,0.3]
[1642069405873,0.19977964,3376.6,3376.5,0.9664034]
[1642069406272,0.74057,3376.7,3376.5,0.96754025]
[1642069407521,0.74057,3376.7,3376.5,0.46766587]
[1642069408120,0.74057,3376.7,3376.5,0.16757552]
[1642069409121,0.03208973,3376.5,3376.4,1.332991]
[1642069409321,0.03208973,3376.5,3376.4,1.632991]
[1642069409523,0.74056,3376.6,3376.4,1.632991]
[1642069410972,2.11470085,3376.5,3376.0,5.1015]
[1642069411272,0.74066,3376.3,3376.1,0.0022737]
[1642069411573,0.74066,3376.3,3376.0,5.1015]
[1642069411574,0.1184,3376.2,3376.0,3.66475222]
[1642069411768,0.1184,3376.2,3375.9,6.16]
[1642069411972,0.19968595,3376.1,3375.9,6.16]
[1642069412170,0.1184,3376.0,3375.9,6.16]
[1642069412370,2.07649703,3376.0,3375.9,6.16]
[1642069412571,0.1184,3376.0,3375.9,6.16113684]
[1642069412770,0.61820742,3376.0,3375.9,6.16113684]
[1642069413275,0.1184,3376.0,3375.9,6.16113684]
[1642069413671,5.2184,3376.0,3375.9,5.66132942]
[1642069413951,5.2184,3376.0,3375.9,0.00113684]
[1642069414134,0.49875204,3375.9,3375.3,6.16]
[1642069414334,0.49875204,3375.9,3375.4,0.00284212]
[1642069414335,0.7409,3375.6,3375.4,0.00284212]
[1642069414535,0.7409,3375.6,3375.0,1.3149]
[1642069414736,0.7409,3375.6,3375.1,0.3]
[1642069414936,1.26651523,3375.5,3375.2,0.5927035]
[1642069415135,1.26651523,3375.5,3375.1,0.00170527]
[1642069415938,1.76645254,3375.5,3375.1,0.00170527]
[1642069416336,1.77799334,3375.4,3375.2,0.5927102]
[1642069416540,2.50737873,3375.4,3375.2,0.5927102]
[1642069416737,0.74092,3375.4,3375.2,0.5927102]
[1642069417137,0.74092,3375.4,3375.1,0.00170527]
[1642069417768,0.74092,3375.4,3375.0,0.00227369]
[1642069417970,0.74089,3375.2,3375.0,0.59500359]
[1642069418173,0.74089,3375.2,3375.0,1.33586359]
[1642069418571,0.74089,3375.2,3375.0,1.63586359]
[1642069418971,0.74089,3375.2,3375.0,0.89500359]
[1642069419869,0.74089,3375.2,3375.0,0.59500359]
[1642069420871,3.74089,3375.2,3375.0,0.59500359]
[1642069422120,4.63419,3375.2,3375.0,0.59500359]
[1642069422623,4.75259,3375.2,3375.0,0.09506628]
[1642069423121,0.40463734,3375.0,3374.9,6.16]
[1642069423721,0.74089,3375.1,3374.9,6.16]
[1642069424923,0.74089,3375.1,3374.9,6.25291488]
[1642069426068,0.74089,3375.1,3374.8,1.1854026]
[1642069426268,3.0,3375.2,3374.8,1.9262726]
[1642069426468,3.0,3375.2,3374.8,1.1854026]
[1642069426869,3.0,3375.2,3374.9,0.3]
[1642069427470,3.0,3375.2,3374.9,0.8926887]
[1642069427670,0.49994506,3375.1,3374.9,0.8926887]
[1642069427870,0.49994506,3375.1,3375.0,2.8184]
[1642069428169,3.0,3375.2,3375.0,4.60563719]
[1642069428373,3.0,3375.2,3375.1,1.76290276]
[1642069428569,3.0,3375.2,3375.1,2.06290276]
[1642069428772,3.00113685,3375.2,3375.1,2.06290276]
[1642069431123,3.00113685,3375.2,3375.1,2.18130276]
[1642069431926,3.00113685,3375.2,3375.1,0.4184]
[1642069432224,3.00113685,3375.2,3375.1,0.1184]
[1642069435472,3.00113685,3375.2,3375.0,1.0109653]
[1642069436072,1.43431316,3375.1,3375.0,1.0109653]
[1642069436273,1.43431316,3375.1,3375.0,0.8925653]
[1642069436720,3.50108191,3375.2,3375.0,1.40222728]
[1642069437526,3.00113685,3375.2,3375.0,1.40222728]
[1642069437726,4.54709312,3375.2,3375.0,1.40222728]
[1642069437927,4.54709312,3375.2,3375.1,0.80966198]
[1642069439824,4.54709312,3375.2,3375.1,1.10966198]
[1642069445418,4.54709312,3375.2,3375.1,0.80966198]
[1642069445621,4.54709312,3375.2,3375.1,1.10966198]
[1642069445819,4.54709312,3375.2,3375.1,0.80966198]
[1642069446020,5.69859312,3375.2,3375.1,0.50966198]
[1642069446421,8.64859312,3375.2,3375.1,0.00971692]
[1642069447122,0.49979991,3375.1,3374.5,0.23312433]
[1642069447319,0.426,3375.0,3374.4,7.6419]
[1642069447521,0.1184,3374.9,3374.6,0.0022737]
[1642069447777,0.5444,3374.9,3374.6,0.0022737]
[1642069447979,3.84101,3374.8,3374.4,1.57718769]
[1642069448278,3.96054685,3374.8,3374.4,1.57718769]
[1642069448475,5.9701178,3374.8,3374.1,5.29263]
[1642069448677,0.00800534,3374.7,3374.2,1.3397]
[1642069448979,2.25,3374.5,3374.2,0.8439769]
[1642069449176,2.25,3374.5,3374.2,0.1184]
[1642069449377,2.99109,3374.5,3374.2,0.1184]
[1642069449575,1.29456972,3374.4,3374.2,0.11602847]
[1642069449776,1.41296972,3374.4,3374.2,0.11602847]
[1642069450378,1.41296972,3374.4,3374.2,0.70886197]
[1642069450776,1.41296972,3374.4,3374.2,0.2114336]
[1642069450975,1.29456972,3374.4,3374.2,0.2114336]
[1642069451175,1.29456972,3374.4,3374.2,0.09540513]
[1642069451624,1.29456972,3374.4,3374.2,0.09303335]
[1642069452424,0.20339908,3374.2,3374.1,1.45947]
[1642069452723,0.20339908,3374.2,3374.1,1.46060684]
[1642069452924,1.29456972,3374.4,3374.1,1.46060684]
[1642069453125,1.29456972,3374.4,3374.1,1.97932944]
[1642069454229,1.29456972,3374.4,3374.2,0.3]
[1642069454426,2.03561972,3374.4,3374.2,0.3]
[1642069454626,7.41e-06,3374.2,3374.1,1.47949542]
[1642069455028,7.41e-06,3374.2,3374.1,1.16060684]
[1642069455281,2.03561972,3374.4,3374.1,1.04220684]
[1642069455481,2.03561972,3374.4,3374.1,0.30113684]
[1642069455878,3.99822622,3374.4,3374.1,0.00113684]
[1642069456080,0.1184,3374.3,3374.1,0.00113684]
[1642069456279,0.74111,3374.2,3373.9,0.00227369]
[1642069456478,0.49980732,3374.1,3373.8,0.52160392]
[1642069456881,0.49980732,3374.1,3373.9,0.00227369]
[1642069457080,4.14905044,3374.3,3373.9,0.00227369]
[1642069457278,4.14905044,3374.3,3373.7,1.3156]
[1642069457279,0.49753363,3373.9,3373.7,1.1972]
[1642069457480,0.49753363,3373.9,3373.6,7.64214]
[1642069457481,1.36455436,3373.8,3373.6,7.64214]
[1642069457779,1.36455436,3373.8,3373.7,0.00113685]
[1642069458379,1.36455436,3373.8,3373.7,0.60113685]
[1642069459622,1.36455436,3373.8,3373.7,0.10123141]
[1642069459823,1.36455436,3373.8,3373.7,0.00113685]
[1642069460125,0.29889724,3373.7,3373.6,2.0008949]
[1642069460725,1.36455436,3373.8,3373.6,2.0008949]
[1642069461123,1.36455436,3373.8,3373.7,0.3]
[1642069461325,1.36455436,3373.8,3373.7,0.6]
[1642069462123,1.36455436,3373.8,3373.7,0.3]
[1642069462691,1.36455436,3373.8,3373.6,2.0008949]
[1642069462882,1.42444259,3373.8,3373.6,2.0008949]
[1642069463079,1.42444259,3373.8,3373.7,0.3]
[1642069463279,1.36455436,3373.8,3373.7,0.3]
[1642069464280,1.36455436,3373.8,3373.7,0.6]
[1642069464483,1.86439397,3373.8,3373.7,0.3]
[1642069464880,1.86439397,3373.8,3373.7,0.6]
[1642069467237,0.49983961,3373.8,3373.7,0.6]
[1642069467439,0.1184,3374.1,3373.7,2.39583702]
[1642069467638,0.1184,3374.1,3373.8,1.556153]
[1642069467839,0.00170527,3374.0,3373.8,1.556153]
[1642069468038,0.00170527,3374.0,3373.8,1.856153]
[1642069468239,0.00113685,3373.9,3373.8,1.3374353]
[1642069468440,0.00113685,3373.9,3373.8,3.24920705]
[1642069468639,0.00113685,3373.9,3373.8,4.24920705]
[1642069469441,0.00113685,3373.9,3373.8,1.4558353]
[1642069470874,0.00113685,3373.9,3373.8,4.21061237]
[1642069472075,0.00113685,3373.9,3373.8,1.4558353]
[1642069472276,0.00113685,3373.9,3373.8,1.3374353]
[1642069475432,3.00113685,3373.9,3373.8,3.09177056]
[1642069475633,3.00113685,3373.9,3373.8,4.09177056]
[1642069475832,3.00113685,3373.9,3373.8,4.21017056]
[1642069476028,0.49983961,3374.5,3373.8,4.21017056]
[1642069476235,0.49983961,3374.5,3374.1,1.48186]
[1642069476428,0.00284212,3374.4,3374.2,0.5186446]
[1642069476635,0.00284212,3374.4,3374.3,0.3]
[1642069476830,0.49983961,3374.5,3374.3,0.3]
[1642069477030,1.8544631,3374.5,3374.2,0.3]
[1642069477229,1.8544631,3374.5,3374.2,1.04093]
[1642069477534,1.8544631,3374.5,3374.3,0.3]
[1642069477778,1.8544631,3374.5,3374.3,1.5595947]
[1642069478175,1.8544631,3374.5,3374.4,0.3]
[1642069478576,1.85787364,3374.5,3374.4,0.3]
[1642069481428,1.85787364,3374.5,3374.4,0.24159029]
[1642069483229,1.35803403,3374.5,3374.4,0.24159029]
[1642069483432,0.25824932,3374.4,3374.3,1.04094]
[1642069483731,0.26109144,3374.4,3374.3,0.3]
[1642069484533,0.00284212,3374.4,3374.3,0.3]
[1642069484935,2.55129964,3374.4,3374.3,0.3]
[1642069485189,2.55129964,3374.4,3374.3,0.6]
[1642069485378,5.55129964,3374.4,3374.3,0.6]
[1642069485981,6.05114498,3374.4,3374.3,0.6]
[1642069486581,3.00284212,3374.4,3374.3,4.1]
[1642069486981,3.00284212,3374.4,3374.3,0.3]
[1642069487382,3.00284212,3374.4,3374.3,0.00358075]
[1642069487583,3.00284212,3374.4,3374.2,2.0005878]
[1642069487785,3.74382212,3374.4,3374.2,2.0005878]
[1642069487982,0.00227369,3374.3,3374.2,2.0005878]
[1642069488382,0.00227369,3374.3,3374.2,2.3005878]
[1642069488782,0.00227369,3374.3,3374.2,0.8187078]
[1642069489239,0.00227369,3374.3,3374.2,1.1187078]
[1642069490041,2.55058756,3374.3,3374.2,1.1187078]
[1642069491939,2.55058756,3374.3,3374.2,0.61895234]
[1642069492541,2.55058756,3374.3,3374.2,0.31896271]
[1642069492994,2.55058756,3374.3,3374.1,2.5194435]
[1642069493194,2.55058756,3374.3,3374.2,0.3]
[1642069493390,2.54831387,3374.3,3374.2,0.3]
[1642069493590,2.54831387,3374.3,3374.2,0.8187078]
[1642069494190,2.54831387,3374.3,3374.2,1.1187078]
[1642069495890,3.0480631,3374.3,3374.2,1.1187078]
[1642069496293,2.54831387,3374.3,3374.2,1.1187078]
[1642069496739,3.0480631,3374.3,3374.2,1.1187078]
[1642069497535,2.54831387,3374.3,3374.2,1.1187078]
[1642069498534,2.54831387,3374.3,3374.2,0.6]
[1642069498736,3.0480631,3374.3,3374.2,0.3]
[1642069499938,2.10360864,3374.3,3374.2,0.3]
[1642069500399,4.05645101,3374.3,3374.2,0.3]
[1642069500604,2.10360864,3374.3,3374.2,0.3]
[1642069500796,2.10360864,3374.3,3374.2,0.6]
[1642069506938,4.05516025,3374.3,3374.2,0.6]
[1642069507138,2.10360864,3374.3,3374.2,0.6]
[1642069507339,1.60385941,3374.3,3374.2,0.6]
[1642069507539,1.60385941,3374.3,3374.2,0.40025077]
[1642069507778,1.60385941,3374.3,3374.2,0.3]
[1642069508178,1.60385941,3374.3,3374.2,1.48e-06]
[1642069508377,1.60385941,3374.3,3374.1,2.5194435]
[1642069508579,2.34487941,3374.3,3374.1,2.5194435]
[1642069508783,0.20150666,3374.2,3374.1,2.5194435]
[1642069509280,0.00170527,3374.2,3374.1,2.8194435]
[1642069509479,0.00170527,3374.2,3374.1,2.3196436]
[1642069510081,0.00170527,3374.2,3374.1,1.81984369]
[1642069510281,0.00170527,3374.2,3374.1,2.11984369]
[1642069510682,0.00170527,3374.2,3374.1,1.82340247]
[1642069510883,0.00170527,3374.2,3374.1,1.7821]
[1642069511288,0.20505491,3374.2,3374.1,2.8194435]
[1642069511731,0.00170527,3374.2,3374.1,2.8194435]
[1642069512132,0.00170527,3374.2,3374.1,2.0821]
[1642069512733,0.50148295,3374.2,3374.1,2.0821]
[1642069515285,0.61988295,3374.2,3374.1,1.4821]
[1642069515486,2.56824567,3374.2,3374.1,1.4821]
[1642069516486,4.09356394,3374.2,3374.1,1.4821]
[1642069516683,4.09356394,3374.2,3374.1,1.7821]
[1642069517082,3.59378626,3374.2,3374.1,1.7821]
[1642069517484,3.59378626,3374.2,3374.1,1.58232232]
[1642069518285,3.59378626,3374.2,3374.1,0.57381268]
[1642069518786,3.59378626,3374.2,3374.1,0.27377414]
[1642069519533,2.06846799,3374.2,3374.1,0.27377414]
[1642069519933,0.19911269,3374.1,3373.7,1.7824]
[1642069520133,0.74122,3374.0,3373.7,1.7824]
[1642069520333,1.96685696,3373.9,3373.8,0.3]
[1642069521136,4.51558087,3373.9,3373.8,0.3]
[1642069521738,0.1997442,3373.8,3373.7,1.7824]
[1642069521936,2.12252352,3373.8,3373.7,1.7824]
[1642069522136,1.92277932,3373.8,3373.7,1.7824]
[1642069522337,1.92277932,3373.8,3373.7,1.4824]
[1642069522982,4.47150323,3373.8,3373.7,1.4824]
[1642069523182,4.47150323,3373.8,3373.7,1.7824]
[1642069523379,5.90139233,3373.8,3373.7,1.28261726]
[1642069523580,4.47150323,3373.8,3373.7,0.3]
[1642069523779,2.54872391,3373.8,3373.7,0.3]
[1642069524181,2.54872391,3373.8,3373.7,0.6]
[1642069524385,2.54872391,3373.8,3373.7,0.30351923]
[1642069524582,2.54872391,3373.8,3373.7,0.3]
[1642069524981,2.75208259,3373.8,3373.7,0.3]
[1642069525581,2.54872391,3373.8,3373.7,0.3]
[1642069525784,2.54872391,3373.8,3373.6,1.9271507]
[1642069525785,0.19982188,3373.7,3373.6,1.9271507]
[1642069525982,0.19982188,3373.7,3373.6,9.8955507]
[1642069526184,0.00113685,3374.1,3373.7,6.78860831]
[1642069526440,0.00113685,3374.1,3373.9,0.48258164]
[1642069526737,3.04214998,3374.8,3374.3,0.74073]
[1642069526937,3.04214998,3374.8,3374.5,5.6121149]
[1642069527134,2.94655569,3375.1,3374.7,0.00483648]
[1642069527332,0.1184,3375.7,3374.8,0.74069]
[1642069527333,2.94655569,3374.9,3374.8,0.74069]
[1642069527534,2.94655569,3374.9,3374.8,1.15909]
[1642069527733,0.06843774,3375.0,3374.8,1.49523472]
[1642069527933,0.06843774,3375.0,3374.9,0.3]
[1642069528333,0.07355355,3375.0,3374.9,2.23143393]
[1642069528734,0.00511581,3375.0,3374.9,2.23143393]
[1642069529234,0.00511581,3375.0,3374.9,5.73143393]
[1642069529633,0.00511581,3375.0,3374.9,6.03143393]
[1642069530690,0.00511581,3375.0,3374.9,2.53143393]
[1642069531887,0.00511581,3375.0,3374.9,2.64983393]
[1642069532889,0.00511581,3375.0,3374.9,2.46761045]
[1642069533089,0.00511581,3375.0,3374.9,0.7184]
[1642069533940,0.00511581,3375.0,3374.9,2.46056278]
[1642069535640,3.00511581,3375.0,3374.9,2.46056278]
[1642069536240,3.00511581,3375.0,3374.9,2.34216278]
[1642069536543,3.00511581,3375.0,3374.9,0.6]
[1642069537542,3.00511581,3375.0,3374.8,1.48138]
[1642069537986,0.00454738,3374.9,3374.8,1.48138]
[1642069538786,0.00454738,3374.9,3374.8,1.78138]
[1642069538986,0.00454738,3374.9,3374.8,2.08138]
[1642069539785,0.00454738,3374.9,3374.8,3.83799914]
[1642069541445,0.00454738,3374.9,3374.8,4.69709914]
[1642069543455,0.00454738,3374.9,3374.8,5.69709914]
[1642069544658,1.86402666,3375.6,3374.9,6.8]
[1642069544659,0.49986364,3375.6,3374.9,6.8]
[1642069544954,0.1184,3375.7,3374.9,6.8]
[1642069544955,0.1184,3375.7,3375.5,0.74047]
[1642069545196,0.1184,3375.7,3375.5,1.04047]
[1642069545386,0.1184,3375.7,3375.5,2.65076752]
[1642069545586,0.1184,3375.7,3375.6,4.85]
[1642069545887,0.1184,3375.7,3375.6,4.9684]
[1642069545888,0.12294739,3375.7,3375.6,4.9684]
[1642069546987,0.12294739,3375.7,3375.6,6.86157829]
[1642069547388,4.739e-05,3375.7,3375.6,6.86157829]
[1642069547793,2.54744626,3375.7,3375.6,6.86157829]
[1642069547988,2.54744626,3375.7,3375.6,3.01157829]
[1642069548788,4.739e-05,3375.7,3375.6,3.01157829]
[1642069549238,4.739e-05,3375.7,3375.6,6.51157829]
[1642069550040,4.739e-05,3375.7,3375.6,3.01157829]
[1642069550240,2.54739887,3376.2,3375.8,0.29618]
[1642069550241,0.00841742,3376.1,3375.8,0.29618]
[1642069550446,2.54739887,3376.2,3375.9,0.74042]
[1642069550639,0.00227369,3376.1,3375.9,0.74042]
[1642069550841,0.00227369,3376.1,3376.0,1.26e-05]
[1642069551040,2.54739887,3376.2,3376.0,1.26e-05]
[1642069551442,2.54739887,3376.2,3376.0,1.4808426]
[1642069551640,2.84739887,3376.2,3376.0,1.4808426]
[1642069551839,0.3,3376.2,3376.0,1.4808426]
[1642069552039,2.96579887,3376.3,3376.0,1.4808426]
[1642069552441,1.48369992,3376.2,3376.0,1.4808426]
[1642069552694,0.3,3376.1,3376.0,1.4808426]
[1642069552887,2.54967256,3376.1,3376.0,1.4808426]
[1642069554493,2.84967256,3376.1,3376.0,1.4808426]
[1642069554893,2.84967256,3376.1,3376.0,1.26e-05]
[1642069555093,2.96807256,3376.1,3376.0,1.26e-05]
[1642069555298,2.96807256,3376.1,3375.3,3.7991]
[1642069555299,0.7407122,3375.8,3375.3,3.7991]
[1642069555496,0.8407122,3375.8,3375.3,3.7991]
[1642069555698,0.8407122,3375.8,3375.4,0.00170527]
[1642069555896,0.1184,3375.7,3375.6,1.48129]
[1642069557161,0.61826364,3375.7,3375.6,1.48129]
[1642069558563,0.740713,3375.6,3375.4,0.00170527]
[1642069558764,2.9628518,3375.6,3375.4,0.00170527]
[1642069559063,3.2628518,3375.6,3375.4,0.00170527]
[1642069559462,2.9628518,3375.6,3375.4,0.00170527]
[1642069560496,3.2628518,3375.6,3375.4,0.00170527]
[1642069561498,2.2628518,3375.6,3375.4,0.00170527]
[1642069562599,2.2628518,3375.6,3375.4,1.76589927]
[1642069563000,2.2628518,3375.6,3375.5,0.00113685]
[1642069564036,2.2628518,3375.6,3375.4,0.00170527]
[1642069565237,2.2628518,3375.6,3375.4,1.7486046]
[1642069565638,2.2628518,3375.6,3375.5,0.00113685]
[1642069566239,2.2628518,3375.6,3375.4,1.75451912]
[1642069566440,2.2628518,3375.6,3375.5,0.00113685]
[1642069567693,1.9628518,3375.6,3375.4,1.74894088]
[1642069567882,1.9628518,3375.6,3375.4,1.85958564]
[1642069568082,1.9628518,3375.6,3375.5,0.00113685]
[1642069568784,2.2628518,3375.6,3375.5,0.00113685]
[1642069568982,4.81000601,3375.6,3375.5,0.00113685]
[1642069570184,4.51000601,3375.6,3375.5,0.00113685]
[1642069570986,4.51000601,3375.6,3375.4,1.88040275]
[1642069571186,4.47000601,3375.6,3375.5,0.00113685]
[1642069572840,4.47000601,3375.6,3375.4,1.77122093]
[1642069573139,4.47000601,3375.6,3375.5,0.00113685]
[1642069573742,4.47000601,3375.6,3375.4,1.75709687]
[1642069573945,4.47000601,3375.6,3375.5,0.00113685]
[1642069575995,4.47000601,3375.6,3375.4,1.73841483]
[1642069576197,4.47000601,3375.6,3375.4,0.00170527]
[1642069576396,4.47000601,3375.6,3375.5,0.00113685]
[1642069576601,4.47000601,3375.6,3375.4,0.00170527]
[1642069576795,2.54715421,3375.5,3375.4,2.35170527]
[1642069577802,2.54715421,3375.5,3375.4,4.13567739]
[1642069578003,2.54715421,3375.5,3375.4,4.15733373]
[1642069580142,2.54715421,3375.5,3375.4,5.15733373]
[1642069580341,2.54715421,3375.5,3375.4,5.45733373]
[1642069581342,2.54715421,3375.5,3375.4,4.15733373]
[1642069582341,2.54715421,3375.5,3375.4,1.80733373]
[1642069582793,2.54715421,3375.5,3375.4,1.73121346]
[1642069582990,2.54715421,3375.5,3375.4,1.77703879]
[1642069583388,2.54715421,3375.5,3375.4,0.00170527]
[1642069584593,2.54715421,3375.5,3375.4,1.76175659]
[1642069585192,2.54715421,3375.5,3375.4,2.06175659]
[1642069585391,2.54715421,3375.5,3375.4,3.06175659]
[1642069586465,2.54715421,3375.5,3375.4,3.18015659]
[1642069586867,2.54715421,3375.5,3375.4,1.42010527]
[1642069587071,2.54715421,3375.5,3375.4,1.12010527]